Cogmind - Beta 15 @@@ ROGUE MODE // 2025.06.10 @ 21:50:50 Player: DZKane Result: Destroyed by P-80 Master with Gamma Rifle Performance ------------- Evolutions (7) 3500 Regions Visited (15) 3000 Robots Destroyed (365) 1825 Value Destroyed (13427) 13427 Prototype IDs (44) 880 Alien Tech Used (0) 0 Bonus (6458) 6458 TOTAL SCORE: 29090 Bonus ------- Triggered High Security 500 High Alert Combat Kills 3503 Follower Combat Kills 2099 Registered with UFD 300 Met Optimus in HQ 500 A7 Reached Mainframe 300 Met R17 at Cetus 500 Friendly Fire -1244 Cogmind --------- Core Integrity 0/1300 Matter 271/300 Energy 99/100 System Corruption 13% Temperature Cool (0) Movement Core (50) Location -3/Research Parts ------- > --- POWER (3) -------- (None) > --- PROPULSION (4) --- (None) > --- UTILITY (10) ----- Enhanced Optical Array Advanced Signal Interpreter Advanced Terrain Scan Processor A0-MCA's Component Scanner > --- WEAPON (4) ------- (None) > --- INVENTORY (5) ---- Advanced Heat Sink Matter Compressor (250) Plasma Cutter PL-3XN's Ring of Power Peak State ------------ > --- POWER ------------ Light Antimatter Reactor Improved Fusion Compressor Improved Fusion Compressor > --- PROPULSION ------- Centrium Heavy Treads Centrium Heavy Treads > --- UTILITY ---------- Advanced Cooling System High-capacity Storage Unit Enhanced Optical Array Experimental Sensor Array Advanced Signal Interpreter Advanced Terrain Scan Processor Advanced Transmission Jammer Centrium Medium Armor Plating Improved System Shield A0-MCA's Component Scanner > --- WEAPON ----------- Improved Heavy Laser Improved Heavy Laser Dispersion Rifle Dispersion Rifle > --- INVENTORY -------- Micro Fission Core Micro Fission Core Centrium Heavy Treads Centrium Heavy Treads Cooled Field Propulsion Drive Advanced Cryofiber Web Advanced Heat Sink Matter Compressor Improved Transmission Jammer Long-range Tractor Beam Mapping Drone Bay Improved Heavy Laser Phase Gun Smartbomb Launcher Plasma Cutter PL-3XN's Ring of Power [Rating: 155] Favorites ----------- Power Heavy Ion Engine Engine Heavy Ion Engine Power Core Fission Core Reactor Quantum Reactor Propulsion Advanced Treads Treads Advanced Treads Leg Aluminum Leg Wheel Overtuned Huge Scrapsphere Flight Unit Cooled Field Propulsion Drive Utility High-capacity Storage Unit Device Experimental Sensor Array Storage High-capacity Storage Unit Processor Advanced Targeting Computer Hackware Improved System Shield Protection Centrium Medium Armor Plating Weapon Enhanced Autogun Energy Gun Improved Heavy Laser Ballistic Gun Enhanced Autogun Ballistic Cannon Heavy Gauss Cannon Launcher Smartbomb Launcher Special Weapon Plasma Cutter Slashing Weapon Scythe Build | -11 -10 -9 -9 -8 -8 -8 -8 -6 -6 -6 -5 -5 -5 -4 -3 ------- Run | Yrd Mat Mat Min Mat Sto Rec Scr Fac Ext Cet Fac Upp Upp Fac Res Slots Evolved 14 | . . 2 . 2 . . . 4 . . 2 . . 2 2 Power 2 | . . . . . . . . . . . 1 . . . 1 Propulsion 2 | . . . . 2 . . . . . . . . . . . Utility 8 | . . . . . . . . 4 . . 1 . . 2 1 Weapon 2 | . . 2 . . . . . . . . . . . . . Parts Attached 178 | . 17 17 1 31 6 . 6 29 6 10 9 3 4 19 20 Power 26 | . 2 3 . 3 1 . 1 1 3 1 3 . . 3 5 Engine 11 | . 2 3 . 2 1 . 1 . 2 . . . . . . Core 6 | . . . . 1 . . . 1 . . . . . 1 3 Reactor 9 | . . . . . . . . . 1 1 3 . . 2 2 Propulsion 38 | . 4 6 . 12 4 . 2 3 . 2 . . . 1 4 Treads 26 | . 3 . . 12 4 . 2 1 . 2 . . . 1 1 Leg . | . . . . . . . . . . . . . . . . Wheel 9 | . 1 6 . . . . . 2 . . . . . . . Hover . | . . . . . . . . . . . . . . . . Flight 3 | . . . . . . . . . . . . . . . 3 Utility 53 | . 3 2 1 2 1 . 3 13 2 2 4 3 4 9 4 Device 23 | . . . . 1 . . . 6 2 . 3 1 4 4 2 Storage 4 | . 1 1 . . . . 1 1 . . . . . . . Processor 11 | . 2 . . 1 1 . . 2 . 1 1 1 . 2 . Hackware 5 | . . . . . . . . 1 . . . . . 2 2 Protection 10 | . . 1 1 . . . 2 3 . 1 . 1 . 1 . Artifact . | . . . . . . . . . . . . . . . . Weapon 61 | . 8 6 . 14 . . . 12 1 5 2 . . 6 7 Energy Gun 16 | . . . . 6 . . . 4 . . . . . 3 3 Energy Cannon . | . . . . . . . . . . . . . . . . Ballistic Gun 28 | . 6 5 . 6 . . . 4 . 5 . . . 2 . Ballistic Cannon 3 | . . . . . . . . 1 . . . . . 1 1 Launcher 7 | . 1 1 . . . . . 2 . . 1 . . . 2 Special Weapon 2 | . 1 . . . . . . . 1 . . . . . . Impact Weapon . | . . . . . . . . . . . . . . . . Slashing Weapon 5 | . . . . 2 . . . 1 . . 1 . . . 1 Piercing Weapon . | . . . . . . . . . . . . . . . . Special Melee Weapon . | . . . . . . . . . . . . . . . . Unidentified Prototypes 15 | . 1 . . 3 . . . 8 . 3 . . . . . Corrupted Parts 6 | . . . . . . . . . . 6 . . . . . System Corruption 26 | . . . . . . . . . . 26 . . . . . Parts Lost 51 | . 2 5 2 2 . . . 1 2 1 3 . . 10 23 Power 9 | . . 1 . . . . . . . . 1 . . 2 5 Propulsion 9 | . 2 1 . . . . . . . . . . . . 6 Utility 12 | . . . . 1 . . . . 1 . . . . 2 8 Weapon 21 | . . 3 2 1 . . . 1 1 1 2 . . 6 4 Highest Loss Streak 9 | . 2 3 1 1 . . . 1 1 1 1 . . 3 9 To Critical Strikes . | . . . . . . . . . . . . . . . . Average Backups 17 | . 13 19 20 19 19 20 18 17 16 16 15 15 16 15 13 Power . | . . . . . 1 1 . . . . . 1 1 1 . Propulsion 3 | . 3 4 8 6 5 6 5 2 1 1 2 2 2 2 2 Utility 9 | . 5 10 10 9 10 10 9 9 10 9 10 11 11 9 6 Weapon 2 | . 3 2 1 2 2 3 2 3 4 4 2 . 1 1 3 Tool/Special . | . . . . . . . . . . . . . . . . Unused Backups 86 | . 13 13 . 14 5 . 14 11 3 3 2 . 1 2 5 Power 4 | . 1 1 . . . . 1 1 . . . . . . . Propulsion 24 | . 2 8 . 6 1 . 1 3 . 3 . . . . . Utility 40 | . 8 3 . 5 4 . 7 4 3 . 2 . 1 . 3 Weapon 16 | . 2 . . 2 . . 5 3 . . . . . 2 2 Tool/Special 2 | . . 1 . 1 . . . . . . . . . . . Average Slot Usage (%) 91 | . 97 97 97 97 99 100 99 84 79 83 87 87 88 88 79 Engine 5 | . 14 10 11 7 9 9 9 4 1 1 . . . . . Reactor 3 | . . . . . . . . . 1 4 11 11 11 9 4 Treads 18 | . 22 . . 32 35 36 36 8 . 10 11 11 11 9 8 Wheel 4 | . . 21 22 3 . . . 8 13 2 . . . . . Device 5 | . . . . 6 . . . 6 11 8 10 5 9 7 16 Storage 7 | . 15 11 11 9 9 9 8 6 6 6 5 5 5 5 3 Processor 11 | . 10 2 . . 9 9 3 12 13 17 17 22 23 20 19 Hackware 1 | . . . . . . . . 1 . . . . . 9 3 Protection 3 | . . 8 11 1 . . 5 4 . 3 5 5 1 3 1 Energy Gun 2 | . . . . 12 . . . . 6 . . . . 2 15 Ballistic Gun 22 | . 27 42 41 18 26 27 27 18 14 25 21 22 23 17 . Slashing Weapon 3 | . . . . 2 8 9 9 6 3 . 1 . . . . Peak Build Rating 155 | . 12 19 19 39 39 39 41 86 85 113 130 131 129 143 155 Average Rating 69 | . 9 16 18 34 38 39 39 70 81 103 126 127 127 137 133 On Entrance 62 | 6 6 12 19 18 38 39 39 41 83 80 113 127 127 128 121 Naked Turns . | . . . . . . . . . . . . . . . . Heaviest Build 115 | 13 53 59 59 62 59 59 67 81 80 93 115 111 107 113 106 Greatest Support 160 | 20 40 32 24 92 88 86 86 86 40 160 160 160 160 160 160 Greatest Overweight (x) 4 | . 3 2 2 2 . . . 3 1 4 . . . . 1 Average Overweight (x) . | . 1 1 2 . . . . . 1 . . . . . . Largest Inventory Capacity 25 | . 20 20 20 20 20 20 25 20 20 20 20 20 20 20 20 Average Capacity 19 | . 18 20 20 20 20 20 19 20 20 20 20 20 20 20 17 Most Carried 20 | . 20 20 20 20 20 20 20 20 20 20 20 20 20 20 20 Average Carried 18 | . 13 19 20 19 19 20 19 19 19 19 19 19 20 19 16 Final Capacity 20 | 8 20 20 20 20 20 20 20 20 20 20 20 20 20 20 5 Final Carried 20 | 6 18 20 20 20 20 20 20 20 18 20 20 20 20 18 4 Class Distribution -------------------- 31% | Scavenger-Tank 16% | Commander-Gunner 12% | Gunner 11% | Mutant 10% | Scavenger-Scrapper 7% | Commander-Tank Dominant Class ---------------- Mutant | -10/Materials Scavenger-Tank | -9/Materials Scavenger-Tank | -9/Mines Gunner | -8/Materials Gunner | -8/Storage Commander-Gunner | -8/Recycling Commander-Tank | -8/Scraptown Scavenger-Scrapper | -6/Factory Scavenger-Scrapper | -6/Extension Scavenger-Tank | -6/Cetus Scavenger-Tank | -5/Factory Scavenger-Tank | -5/Upper Caves Scavenger-Tank | -5/Upper Caves Scavenger-Tank | -4/Factory Tank | -3/Research Resources | -11 -10 -9 -9 -8 -8 -8 -8 -6 -6 -6 -5 -5 -5 -4 -3 ----------- Run | Yrd Mat Mat Min Mat Sto Rec Scr Fac Ext Cet Fac Upp Upp Fac Res Matter Collected 11234 | 184 634 700 195 953 833 12 90 2240 1507 390 1497 352 182 1180 285 Remotely 2737 | . . . . . . . . 619 308 175 786 . . 784 65 Salvage Created 17678 | . 633 1220 387 1955 1562 365 . 1974 2792 386 3526 418 100 1856 504 Parts 915 | . 50 65 18 121 96 14 . 105 130 15 141 20 12 108 20 Haulers Intercepted 20 | . 2 3 . 6 4 . . 1 3 . 1 . . . . Recyclers Shooed 11 | . . 4 . . 1 . . 5 . . . . . 1 . Parts Field Recycled . | . . . . . . . . . . . . . . . . Retrieved Matter . | . . . . . . . . . . . . . . . . Parts Self-Destructed 27 | . . . . . . . . . . . . 15 12 . . Prevented . | . . . . . . . . . . . . . . . . Kills | -11 -10 -9 -9 -8 -8 -8 -8 -6 -6 -6 -5 -5 -5 -4 -3 ------- Run | Yrd Mat Mat Min Mat Sto Rec Scr Fac Ext Cet Fac Upp Upp Fac Res Combat Hostiles Destroyed 261 | . 18 18 9 31 24 5 . 24 31 5 54 8 1 24 9 Melee 6 | . . . . . . 4 . 1 . . . . . . 1 Guns 231 | . 13 18 9 31 22 1 . 16 31 5 53 4 1 20 7 AOE 23 | . 5 . . . 2 . . 7 . . 1 4 . 4 . Classes Destroyed 23 | . 7 2 . 3 2 1 . 3 3 . . 1 1 . . Worker 20 | . 3 3 . 3 2 . . 1 2 . . . . 6 . Builder 18 | . 1 . . 3 4 . . 4 3 . 1 . . 2 . Tunneler 3 | . . . . 2 . . . . . . . . . 1 . Hauler 20 | . 2 3 . 6 4 . . 1 3 . 1 . . . . Recycler 19 | . . 3 . 2 1 1 . 3 6 . 1 . . 2 . Mechanic 2 | . . . . 1 . . . . . . 1 . . . . Operator 10 | . 3 2 . . 1 . . 1 1 . . . . 1 1 Watcher 7 | . 1 1 . 2 1 . . . 1 . . . . 1 . Swarmer 59 | . 9 5 . 9 4 . . 2 9 . 14 . . 4 3 Saboteur 1 | . . . . . . . . 1 . . . . . . . Grunt 109 | . 9 7 9 14 11 . . 10 11 . 26 5 . 6 1 Brawler 6 | . . . . 1 1 . . . . . 4 . . . . Duelist 8 | . . . . . 1 . . 2 . . 5 . . . . Protector 2 | . . . . . 1 . . . 1 . . . . . . Sentry 32 | . . 6 . 7 6 4 . 2 4 . . 1 . 2 . Demolisher 2 | . . . . . . . . . 2 . . . . . . Specialist 1 | . . . . . . . . 1 . . . . . . . Hunter 14 | . . . . . . 1 . 6 3 . . . . . 4 Programmer 21 | . . . . . . . . . 1 . 5 2 . 12 1 Behemoth 1 | . . . . . . . . . . . . . 1 . . Cetus Guard 5 | . . . . . . . . . . 5 . . . . . Scrapoid 4 | . . . . . . . . 4 . . . . . . . Botcube 1 | . . . . . . . . . 1 . . . . . . Samaritan 1 | . . . . . . . . . . . . 1 . . . Butcher 1 | . . . . . . . . . 1 . . . . . . Best Kill Streak 16 | . 10 13 3 9 7 2 . 16 7 3 12 3 1 7 4 Combat Bots Only 12 | . 4 5 3 7 7 2 . 10 4 3 12 3 1 5 4 Max Kills in Single Turn 6 | . 3 2 1 4 2 1 . 6 2 1 2 1 1 3 1 Gunslinging 2 | . . . . 2 1 . . 1 1 . 1 . . . . Exploded 5 | . 3 . . . 2 . . 5 . . 1 1 . 3 . Melee 1 | . . . . . . 1 . 1 . . . . . . 1 Uniques/NPCs Destroyed . | . . . . . . . . . . . . . . . . Combat | -11 -10 -9 -9 -8 -8 -8 -8 -6 -6 -6 -5 -5 -5 -4 -3 -------- Run | Yrd Mat Mat Min Mat Sto Rec Scr Fac Ext Cet Fac Upp Upp Fac Res Hostile Shots Fired 1568 | . 116 97 39 129 61 12 . 120 176 13 254 17 15 165 354 Missed 482 | . 34 28 11 40 19 3 . 32 60 4 87 3 5 45 111 Hits 1086 | . 82 69 28 89 42 9 . 88 116 9 167 14 10 120 243 Melee 7 | . . . . . . . . . . . 3 . . . 4 Projectile 1079 | . 82 69 28 89 42 9 . 88 116 9 164 14 10 120 239 AOE 8 | . . . . . 1 . . 1 1 . 3 . . . 2 Critical Strikes 46 | . 2 2 1 3 2 . . 4 5 3 7 . . 9 8 Part Disruptions 2 | . . . . . . . . . . . . . . . 2 Damage Taken 17646 | . 914 770 374 1224 672 131 . 1382 1272 221 2410 236 157 2219 5664 Core 2788 | . 229 174 88 153 95 . . 91 196 14 238 25 16 158 1311 Absorbed by Shields 1763 | . . . . . . . . 135 452 36 767 66 110 197 . Reduced by Siege Mode 304 | . . . . . . . . . . . . . 23 10 271 Regen/Repaired (Parts) 1701 | . . 36 . . 240 . . . 161 . . . . 1264 . Core Remaining (%) 59 | 100 8 . 34 . . . 54 . . 64 . . 72 86 . Volleys Fired 744 | . 77 66 24 104 60 1 . 76 113 15 79 13 5 89 22 Largest 4 | . 2 4 4 4 4 3 . 3 4 4 4 4 4 4 4 Hottest 306 | . 100 86 86 196 105 75 . 94 114 130 140 135 135 228 306 Shots Fired 2219 | . 143 238 88 313 179 3 . 225 317 52 295 35 22 225 84 Gun 2191 | . 132 237 88 313 178 3 . 220 317 52 294 29 22 223 83 Cannon 1 | . . . . . . . . . . . . . . . 1 Launcher 26 | . 10 1 . . 1 . . 5 . . 1 6 . 2 . Special 1 | . 1 . . . . . . . . . . . . . . Kinetic 1886 | . 132 237 88 194 178 3 . 220 255 52 294 29 22 181 1 Thermal 299 | . 1 . . 111 . . . . 62 . . . . 42 83 Explosive 26 | . 10 1 . . 1 . . 5 . . 1 6 . 2 . Electromagnetic 8 | . . . . 8 . . . . . . . . . . . Robot Hit Streak 30 | . 17 15 8 12 20 2 . 11 17 14 30 29 18 20 22 Robot Miss Streak 6 | . 4 4 4 5 4 . . 6 4 1 3 1 . 4 6 Penetration Max 2 | . . . . . . . . 2 2 1 1 1 . 1 . Secondary Targets 61 | . 1 3 . 7 6 . . 6 7 . 22 1 . 6 2 Max Gunslinging Chain 2 | . 1 1 . 2 1 . . 2 1 . 2 1 . 1 1 Shots Hit Robots 1414 | . 89 139 48 159 126 9 . 158 214 40 199 24 17 130 62 Core Hits 691 | . 42 59 20 82 60 7 . 95 98 15 104 19 4 65 21 Critical Kills 30 | . . . . . . . . 1 7 1 15 1 . 4 1 Critical Parts Destroyed 60 | . 2 . . . 1 . . 4 5 2 32 6 1 5 2 Critical Strikes 113 | . 2 . . 3 1 . . 6 19 5 47 8 4 13 5 Burn 15 | . . . . 3 . . . . 6 . . . . 4 2 Destroy 97 | . 2 . . . 1 . . 5 13 5 47 8 4 9 3 Sever 1 | . . . . . . . . 1 . . . . . . . Melee Attacks 57 | . . . . 3 7 8 . 23 10 . 4 . . . 2 Impact . | . . . . . . . . . . . . . . . . Slashing 57 | . . . . 3 7 8 . 23 10 . 4 . . . 2 Piercing . | . . . . . . . . . . . . . . . . Sneak Attacks 24 | . . . . . 4 5 . 10 5 . . . . . . Combat Hostiles 3 | . . . . . . 3 . . . . . . . . . Follow-up Attacks . | . . . . . . . . . . . . . . . . Damage Inflicted 40082 | . 1422 1507 590 2826 2519 438 . 5670 7342 1315 7421 1636 510 5375 1511 Guns 33581 | . 978 1507 583 2818 2113 35 . 3276 6685 1315 6954 844 510 4458 1505 Cannons . | . . . . . . . . . . . . . . . . Explosions 4187 | . 444 . . . 87 . . 1598 . . 429 792 . 837 . Melee 2205 | . . . . . 319 403 . 796 657 . 30 . . . . Ramming 109 | . . . 7 8 . . . . . . 8 . . 80 6 Kinetic 28910 | . 978 1507 583 1584 2113 35 . 3276 5778 1315 6954 844 510 3433 . Thermal 4919 | . . . . 1175 . . . . 907 . . . . 1332 1505 Explosive 3776 | . 444 . . . 87 . . 1598 . . 429 792 . 426 . Electromagnetic 163 | . . . . 59 . . . . . . . . . 104 . Impact . | . . . . . . . . . . . . . . . . Slashing 2205 | . . . . . 319 403 . 796 657 . 30 . . . . Piercing . | . . . . . . . . . . . . . . . . Highest Corruption 26 | . 2 . . . . . . . . 26 3 5 5 14 13 Average Corruption 4 | . 2 . . . . . . . . 18 1 4 5 5 3 Corruption Purged 11 | . . . . . . . . . . . . . . 11 . Corruption Blocked . | . . . . . . . . . . . . . . . . Effects 108 | . 20 . . . . . . . . 18 3 17 14 22 14 Message Errors 34 | . 6 . . . . . . . . 6 1 5 4 9 3 Matter Fused 23 | . 3 . . . . . . . . 7 . . 4 3 6 Heat Flow Errors 15 | . 4 . . . . . . . . . 2 4 1 2 2 Energy Discharges 11 | . 3 . . . . . . . . . . 5 1 2 . Parts Rejected 2 | . 1 . . . . . . . . . . . 1 . . Data Loss (minor) 6 | . 1 . . . . . . . . 3 . 1 . 1 . Data Loss (major) 6 | . . . . . . . . . . 2 . 1 . 2 1 Misfires 4 | . . . . . . . . . . . . 1 2 1 . Alerts 5 | . 2 . . . . . . . . . . . 1 1 1 Weapon Failures 2 | . . . . . . . . . . . . . . 1 1 Overload Shots . | . . . . . . . . . . . . . . . . Overflow Damage 985 | . 20 . . . 90 69 . 148 315 . 56 75 . 212 . Projectiles . | . . . . . . . . . . . . . . . . Explosions 374 | . 20 . . . . . . 11 . . 56 75 . 212 . Melee 611 | . . . . . 90 69 . 137 315 . . . . . . Knockbacks 1 | . . . . . . . . . . . . . . 1 . Impact 1 | . . . . . . . . . . . . . . 1 . Kinetic . | . . . . . . . . . . . . . . . . Secondary . | . . . . . . . . . . . . . . . . Self-Inflicted Damage 118 | . 53 . 3 . . . . 62 . . . . . . . Shots 4 | . 3 . . . . . . 1 . . . . . . . Rammed 11 | . . . 1 2 . . . . . . 1 . . 5 2 Targets Rammed 14 | . . . 1 2 . . . . . . 1 . . 7 3 Kicked . | . . . . . . . . . . . . . . . . Crushed 3 | . . . . . . . . . . . . . . 2 1 Highest Temperature 418 | . 235 125 174 352 338 24 . 306 120 32 141 245 221 257 418 Average Temperature 76 | . 41 47 37 111 100 18 . 93 22 16 11 87 99 81 120 Received Heat Transfer 3356 | . 318 219 228 567 288 27 . 330 228 . 571 39 6 277 258 Effects 10 | . . . . 5 3 . . . . . . . . . 2 Shutdowns 1 | . . . . . . . . . . . . . . . 1 Energy Bleed 1 | . . . . . . . . . . . . . . . 1 Interference 8 | . . . . 5 3 . . . . . . . . . . Siege Activations 7 | . . . . . . . . . . . . . 1 3 3 Total Turns 112 | . . . . . . . . . . . . . 20 27 65 Longest Duration 39 | . . . . . . . . . . . . . 20 14 39 Martial Activations . | . . . . . . . . . . . . . . . . Shielding Activations . | . . . . . . . . . . . . . . . . Robots Disrupted . | . . . . . . . . . . . . . . . . Combat Hostiles . | . . . . . . . . . . . . . . . . Robots Corrupted . | . . . . . . . . . . . . . . . . Combat Hostiles . | . . . . . . . . . . . . . . . . Parts Fried 2 | . . . . . . . . . 1 1 . . . . . Impact Corruptions . | . . . . . . . . . . . . . . . . Robots Melted 1 | . . . . . . . . . . . . . . . 1 Combat Hostiles 1 | . . . . . . . . . . . . . . . 1 Parts Melted 16 | . . . . 3 . . . . 3 . 2 . . 3 5 Heat Transferred 8478 | . . . . 2479 . . . . 2012 . . . . 1767 2220 Parts Sabotaged . | . . . . . . . . . . . . . . . . Parts Stolen . | . . . . . . . . . . . . . . . . Parts Stripped . | . . . . . . . . . . . . . . . . Power Chain Reactions . | . . . . . . . . . . . . . . . . Alert | -11 -10 -9 -9 -8 -8 -8 -8 -6 -6 -6 -5 -5 -5 -4 -3 ------- Run | Yrd Mat Mat Min Mat Sto Rec Scr Fac Ext Cet Fac Upp Upp Fac Res Maximum Alert Level 5 | . . . . 2 2 1 . 3 5 4 5 . . 2 1 Low Security (%) 46 | . 100 100 100 18 8 85 . 59 . . . . . 43 88 Level 1 21 | . . . . 42 50 14 . . 39 . . . . 46 11 Level 2 15 | . . . . 38 41 . . 24 8 . 24 . . 10 . Level 3 4 | . . . . . . . . 15 7 . 20 . . . . Level 4 9 | . . . . . . . . . 20 100 45 . . . . Level 5 2 | . . . . . . . . . 23 . 1 . . . . High Security . | . . . . . . . . . . . 7 . . . . Max Security . | . . . . . . . . . . . . . . . . Peak Influence 2258 | . 144 157 71 475 526 235 . 749 2258 1292 1853 . . 535 264 Initial 1254 | . . 20 52 14 144 171 . . 343 1254 694 . . 300 264 Average 394 | . 46 102 34 321 384 130 . 285 974 1237 1117 . . 208 120 Influence Increases 11783 | . 551 587 277 1096 883 480 . 1394 2637 298 1723 180 30 1225 422 Destroy 0b10 Robot/C 6260 | . 360 360 200 700 500 140 . 700 1220 160 1080 160 20 480 180 Destroy 0b10 Robot/NC 570 | . 50 60 . 95 70 10 . 70 115 10 20 . . 65 5 Destroy Leader 1164 | . 76 128 40 156 140 . . 148 152 . 152 20 10 102 40 Allied During Kill 1404 | . . . 22 22 59 101 . 225 895 80 . . . . . Successful Hack 329 | . 17 19 . 24 22 19 . 90 14 . 14 . . 82 28 Select Force Hacks 210 | . . . . . . 210 . . . . . . . . . Disable Machine 675 | . 15 15 15 30 . . . 60 90 30 210 . . 210 . Destroy Structure 751 | . 33 5 . 9 17 . . 101 106 18 202 . . 256 4 Lose Combat Pursuer 420 | . . . . 60 75 . . . 45 . 45 . . 30 165 Influence Decreases 11702 | . 503 500 373 791 786 848 73 693 1097 1299 1110 1004 582 1197 846 Entered New Map 3870 | . . 28 83 25 200 270 73 . 358 987 546 686 196 177 241 Time Decay 6109 | . 483 422 270 576 526 428 . 473 559 222 494 318 356 610 372 Lost Part 493 | . 20 50 20 20 . . . 10 20 10 30 . . 100 213 Lost Ally 630 | . . . . 20 60 . . 210 160 80 40 . 30 10 20 Purge Threat 600 | . . . . 150 . 150 . . . . . . . 300 . Squads Dispatched 65 | . 2 4 . 2 4 . . 9 10 . 16 . . 11 7 Investigation 21 | . . 2 . 2 1 . . 4 3 . 1 . . 5 3 Extermination 11 | . . . . . . . . 2 . . 2 . . 5 2 Reinforcement 18 | . 2 2 . . 1 . . 3 3 . 4 . . 1 2 Assault 15 | . . . . . 2 . . . 4 . 9 . . . . Garrison . | . . . . . . . . . . . . . . . . Intercept . | . . . . . . . . . . . . . . . . Searches Triggered . | . . . . . . . . . . . . . . . . Construction Impeded 3 | . . . . . . . . 1 2 . . . . . . Haulers Reinforced 1 | . . . . . . . . . . . 1 . . . . Active Scanning Responses . | . . . . . . . . . . . . . . . . Cargo Convoy Interrupts 2 | . . . . . . . . 1 . . . . . . 1 Stealth | -11 -10 -9 -9 -8 -8 -8 -8 -6 -6 -6 -5 -5 -5 -4 -3 --------- Run | Yrd Mat Mat Min Mat Sto Rec Scr Fac Ext Cet Fac Upp Upp Fac Res Distress Signals 18 | . 3 3 . 6 1 . . 1 1 2 . . . 1 . Communications Jammed 11 | . . . . . . . . . . . . . . 1 10 Distress Signals 5 | . . . . . . . . . . . . . . 1 4 Times Spotted 445 | . 35 31 9 55 41 4 . 50 63 9 69 4 1 33 41 Peak Tracking Total 17 | . 5 5 3 8 13 1 . 11 13 5 9 2 1 4 17 Tactical Retreats 15 | . . . . 2 2 . . . 3 . 3 . . 1 4 Traps | -11 -10 -9 -9 -8 -8 -8 -8 -6 -6 -6 -5 -5 -5 -4 -3 ------- Run | Yrd Mat Mat Min Mat Sto Rec Scr Fac Ext Cet Fac Upp Upp Fac Res Traps Triggered 10 | . 1 1 . 1 . . . . 3 . . . . 3 1 Indirectly . | . . . . . . . . . . . . . . . . Trap Hack Attempts . | . . . . . . . . . . . . . . . . Triggered . | . . . . . . . . . . . . . . . . Disarmed . | . . . . . . . . . . . . . . . . Reprogrammed . | . . . . . . . . . . . . . . . . Reused . | . . . . . . . . . . . . . . . . Traps Extracted . | . . . . . . . . . . . . . . . . Installed . | . . . . . . . . . . . . . . . . Triggered . | . . . . . . . . . . . . . . . . Machines | -11 -10 -9 -9 -8 -8 -8 -8 -6 -6 -6 -5 -5 -5 -4 -3 ---------- Run | Yrd Mat Mat Min Mat Sto Rec Scr Fac Ext Cet Fac Upp Upp Fac Res Machines Disabled 49 | . 2 1 1 2 . . . 4 9 2 14 . . 14 . Max in Single Turn 3 | . 1 1 1 1 . . . 1 1 1 3 . . 3 . Garrison Access 3 | . . . . . 1 . . 2 . . . . . . . Machines Repaired . | . . . . . . . . . . . . . . . . Machines Dismantled 6 | . . . . . . . . . 5 1 . . . . . Machines Sabotaged . | . . . . . . . . . . . . . . . . Overloaded Fab Kills . | . . . . . . . . . . . . . . . . Hacking | -11 -10 -9 -9 -8 -8 -8 -8 -6 -6 -6 -5 -5 -5 -4 -3 --------- Run | Yrd Mat Mat Min Mat Sto Rec Scr Fac Ext Cet Fac Upp Upp Fac Res Machines Accessed 95 | . 5 7 . 10 11 13 6 12 9 1 2 1 1 12 5 Terminals 57 | . 5 6 . 8 9 5 . 6 8 1 1 1 . 5 2 Fabricators . | . . . . . . . . . . . . . . . . Repair Stations 4 | . . 1 . . 1 . . . . . . . . 2 . Recycling Units 18 | . . . . . . 7 . 4 1 . 1 . . 4 1 Scanalyzers 4 | . . . . 2 . . . . . . . . . 1 1 Garrison Access 4 | . . . . . 1 . . 2 . . . . . . 1 Total Hacks 272 | . 14 21 . 34 30 24 43 28 20 1 4 1 1 41 10 Successful 175 | . 10 14 . 21 19 17 43 17 3 . 2 1 1 24 3 Failed 96 | . 4 6 . 13 11 7 . 11 17 1 2 . . 17 7 Catastrophic 18 | . . . . 1 1 2 . 3 5 . . . . 4 2 Database Lockouts 1 | . . 1 . . . . . . . . . . . . . Manual 121 | . 11 11 . 16 12 13 . 17 7 2 4 . . 24 4 Terminals 153 | . 14 18 . 23 21 11 . 17 17 1 3 1 . 23 4 Fabricators . | . . . . . . . . . . . . . . . . Repair Stations 22 | . . 3 . . 8 . . . . . . . . 11 . Recycling Units 24 | . . . . . . 8 . 6 3 . 1 . . 4 2 Scanalyzers 16 | . . . . 11 . . . . . . . . . 3 2 Garrison Access 8 | . . . . . 1 . . 5 . . . . . . 2 Terminal Hacks 86 | . 3 6 . 4 6 10 43 3 3 . . 1 1 4 2 Record 43 | . . . . . . 5 37 . . . . 1 . . . Robot Analysis 8 | . 1 . . . . . 6 1 . . . . . . . Prototype ID Bank 11 | . 2 4 . 2 2 . . 1 . . . . . . . Open Door 7 | . . . . . 3 . . . 3 . . . 1 . . Level Access Points 1 | . . . . . . 1 . . . . . . . . . Branch Access Points 3 | . . . . . . 1 . . . . . . . 1 1 Terminal Index 3 | . . 1 . . . . . 1 . . . . . 1 . Recycling Unit Index 2 | . . . . . . 1 . . . . . . . . 1 Unreport Threat 4 | . . . . 1 . 1 . . . . . . . 2 . Locate Traps 3 | . . 1 . 1 1 . . . . . . . . . . Zone Layout 1 | . . . . . . 1 . . . . . . . . . Fabricator Hacks . | . . . . . . . . . . . . . . . . Repair Station Hacks 13 | . . 2 . . 6 . . . . . . . . 5 . Scan Component 7 | . . 1 . . 3 . . . . . . . . 3 . Repair 6 | . . 1 . . 3 . . . . . . . . 2 . Recycling Unit Hacks . | . . . . . . . . . . . . . . . . Scanalyzer 13 | . . . . 10 . . . . . . . . . 3 . Insert Component 6 | . . . . 5 . . . . . . . . . 1 . Analyze 7 | . . . . 5 . . . . . . . . . 2 . Garrison Access Hacks 4 | . . . . . 1 . . 3 . . . . . . . Seal Access 3 | . . . . . 1 . . 2 . . . . . . . Coupler Status 1 | . . . . . . . . 1 . . . . . . . Unauthorized Hacks 59 | . 7 6 . 7 6 7 . 11 . . 2 . . 12 1 Terminals 42 | . 7 5 . 7 6 . . 8 . . 1 . . 8 . Assimilate 1 | . . . . . . . . . . . . . . 1 . Botnet 10 | . 2 . . 2 1 . . 2 . . 1 . . 2 . Operators 1 | . . . . . . . . 1 . . . . . . . Skim 30 | . 5 5 . 5 5 . . 5 . . . . . 5 . Fabricators . | . . . . . . . . . . . . . . . . Repair Stations 1 | . . 1 . . . . . . . . . . . . . Patch 1 | . . 1 . . . . . . . . . . . . . Recycling Units 15 | . . . . . . 7 . 3 . . 1 . . 4 . Tunnel 7 | . . . . . . 7 . . . . . . . . . Fedlink 8 | . . . . . . . . 3 . . 1 . . 4 . Scanalyzers 1 | . . . . . . . . . . . . . . . 1 Researchers 1 | . . . . . . . . . . . . . . . 1 Garrison Access . | . . . . . . . . . . . . . . . . Data Cores Recovered 2 | . 1 . . . . . . . 1 . . . . . . Used 1 | . . . . . . . . . 1 . . . . . . Hacking Detections 60 | . 3 6 . 10 8 4 . 8 8 1 1 . . 7 4 Full Trace Events 9 | . . . . 1 1 . . 1 2 . . . . 1 3 Feedback Events 1 | . . . . . . . . . . . . . . . 1 Hackware Fried 1 | . . . . . . . . . . . . . . . 1 Feedback Blocked . | . . . . . . . . . . . . . . . . Robot Schematics Acquired . | . . . . . . . . . . . . . . . . Robots Built . | . . . . . . . . . . . . . . . . Authchips . | . . . . . . . . . . . . . . . . Time . | . . . . . . . . . . . . . . . . Total Robot Build Rating . | . . . . . . . . . . . . . . . . Part Schematics Acquired 5 | . . . . 4 . . . . . . . . . 1 . Parts Built . | . . . . . . . . . . . . . . . . Authchips . | . . . . . . . . . . . . . . . . Time . | . . . . . . . . . . . . . . . . Total Part Build Rating . | . . . . . . . . . . . . . . . . Parts Repaired 6 | . . 1 . . 3 . . . . . . . . 2 . Time 289 | . . 32 . . 158 . . . . . . . . 99 . Parts Recycled . | . . . . . . . . . . . . . . . . Recycled Matter . | . . . . . . . . . . . . . . . . Retrieved Matter . | . . . . . . . . . . . . . . . . Retrieved Components . | . . . . . . . . . . . . . . . . Parts Scanalyzed 5 | . . . . 4 . . . . . . . . . 1 . Part Schematics Acquired 5 | . . . . 4 . . . . . . . . . 1 . Parts Damaged . | . . . . . . . . . . . . . . . . Bothacking | -11 -10 -9 -9 -8 -8 -8 -8 -6 -6 -6 -5 -5 -5 -4 -3 ------------ Run | Yrd Mat Mat Min Mat Sto Rec Scr Fac Ext Cet Fac Upp Upp Fac Res Used RIF Installer . | . . . . . . . . . . . . . . . . Robots Hacked . | . . . . . . . . . . . . . . . . Non-combat . | . . . . . . . . . . . . . . . . Combat . | . . . . . . . . . . . . . . . . Robot Hacks Applied . | . . . . . . . . . . . . . . . . Relay Couplers Released . | . . . . . . . . . . . . . . . . Fabnet Peak Effective % . | . . . . . . . . . . . . . . . . Robots Rewired 13 | . . . . . . 4 . . 9 . . . . . . Allies Hacked . | . . . . . . . . . . . . . . . . Hacks Repelled . | . . . . . . . . . . . . . . . . Allies | -11 -10 -9 -9 -8 -8 -8 -8 -6 -6 -6 -5 -5 -5 -4 -3 -------- Run | Yrd Mat Mat Min Mat Sto Rec Scr Fac Ext Cet Fac Upp Upp Fac Res Total Allies 45 | . . . 2 . 12 4 1 6 20 . . . . . . Largest Group 14 | . . . 2 2 10 13 14 14 12 8 4 . . . . Highest-Rated Group 473 | . . . 45 45 173 219 273 375 473 347 228 . . . . Highest-Rated Ally 159 | . . . 31 31 31 29 54 54 159 146 140 . . . . Total Orders 26 | . . . . . . . . . . . 14 . 4 6 2 EXPLORE 23 | . . . . . . . . . . . 12 . 4 5 2 RETURN 3 | . . . . . . . . . . . 2 . . 1 . Ally Attacks 401 | . . . 8 29 24 2 . 102 203 33 . . . . . Total Damage 7500 | . . . 103 316 371 34 . 1581 4227 868 . . . . . Kills 70 | . . . 1 5 2 2 . 17 38 5 . . . . . Allies Corrupted 4 | . . . . . . . . 2 . . 2 . . . . Allies Melted . | . . . . . . . . . . . . . . . . Intel | -11 -10 -9 -9 -8 -8 -8 -8 -6 -6 -6 -5 -5 -5 -4 -3 ------- Run | Yrd Mat Mat Min Mat Sto Rec Scr Fac Ext Cet Fac Upp Upp Fac Res Active Infowar (turns) 9791 | . . . . . . . . 1589 1647 476 1428 714 811 2240 886 Optics 9791 | . . . . . . . . 1589 1647 476 1428 714 811 2240 886 Sensors 3606 | . . . . . . . . . . . . 615 711 1831 449 Jamming 1195 | . . . . . . . . . . . . . . 431 764 Robot Analysis Total 8 | . 1 . . . . . 6 1 . . . . . . . Derelict Logs Recovered 2 | . . . 2 . . . . . . . . . . . . Drone Launches 22 | . . . . . . . . . . . 13 . 3 4 2 Drone Recoveries 14 | . . . . . . . . . . . 11 . . 3 . Exploration | -11 -10 -9 -9 -8 -8 -8 -8 -6 -6 -6 -5 -5 -5 -4 -3 ------------- Run | Yrd Mat Mat Min Mat Sto Rec Scr Fac Ext Cet Fac Upp Upp Fac Res Turns Passed 20337 | . 1726 1124 587 1779 1479 1052 2798 1590 1647 476 1428 714 811 2240 886 Spaces Moved 10888 | 1 687 648 376 858 719 638 1780 1080 1179 206 622 391 288 886 529 Core 116 | . . . . . . . . . . . . . . . 116 Treads 7176 | . 454 . . 698 719 638 1780 257 . 146 622 391 288 886 297 Legs 155 | 1 154 . . . . . . . . . . . . . . Wheels 3325 | . 79 648 376 160 . . . 823 1179 60 . . . . . Hover . | . . . . . . . . . . . . . . . . Flight 116 | . . . . . . . . . . . . . . . 116 Fastest Speed 37 | 120 120 105 120 120 145 151 151 80 80 80 160 160 160 160 37 Average Speed 137 | 120 202 117 120 141 150 151 151 98 80 138 160 160 160 160 114 Slowest Speed 260 | 120 260 130 120 160 151 151 151 237 80 160 160 160 160 160 240 Overloaded Moves . | . . . . . . . . . . . . . . . . Propulsion Burnouts . | . . . . . . . . . . . . . . . . Robots Hopped 3 | . . . . . . . . . . . . . . . 3 Potential Cave-ins 15 | . . . . . . . . . . . . . . 15 . Cave-ins Triggered . | . . . . . . . . . . . . . . . . Exploration Rate (%) 62 | 2 91 59 95 73 93 96 86 29 97 81 39 65 47 34 19 Regions Visited 15 Branch Regions 8 Pre-discovered Areas 22 | . 1 3 . 3 . 7 . 8 . . . . . . . Known Exits Taken 11 | . 1 . 1 1 . 1 1 1 . 1 1 1 1 1 . Unknown Exits Taken 4 | 1 . 1 . . 1 . . . 1 . . . . . . Scrap Searched 15 | . . . 3 . . . 8 . . . . 2 2 . . Spaces Dug 103 | . 16 4 . 1 1 . . 10 2 . 12 . . 55 2 Terrain Destroyed 636 | . 34 4 . 1 14 . . 94 115 15 108 70 7 172 2 Melee 17 | . . . . 1 1 . . 10 2 . 2 . . . 1 Projectile 372 | . . . . . . . . 43 113 15 69 12 7 112 1 AOE 247 | . 34 4 . . 13 . . 41 . . 37 58 . 60 . Terrain Rammed . | . . . . . . . . . . . . . . . . Walls Destroyed . | . . . . . . . . . . . . . . . . Machines Disabled . | . . . . . . . . . . . . . . . . Actions | -11 -10 -9 -9 -8 -8 -8 -8 -6 -6 -6 -5 -5 -5 -4 -3 --------- Run | Yrd Mat Mat Min Mat Sto Rec Scr Fac Ext Cet Fac Upp Upp Fac Res Total 14897 | . 896 911 462 1252 1043 714 1907 1488 1645 358 855 454 624 1540 748 Wait 2249 | . 62 123 60 194 231 43 48 216 130 91 95 26 319 474 137 Move 10867 | . 686 647 375 857 718 637 1779 1079 1178 205 621 390 287 885 523 Hop 3 | . . . . . . . . . . . . . . . 3 Pick Up 193 | . 27 26 . 21 7 . 39 15 2 10 10 4 2 22 8 Fast Attach 82 | . 6 6 . 17 2 . 3 17 3 7 5 2 1 5 8 Attach 69 | . 4 3 . 5 1 . 1 6 2 4 8 4 . 15 16 Detach 7 | . . . . . . . . 1 . 2 1 . . 1 2 Swap 149 | . 15 11 1 10 7 . 5 21 10 4 18 8 7 25 7 Drop 238 | . 19 29 1 39 10 . 32 34 6 12 13 7 2 17 17 Fire 744 | . 77 66 24 104 60 1 . 76 113 15 79 13 5 89 22 Melee 57 | . . . . 3 7 8 . 23 10 . 4 . . . 2 Ram 1 | . . . 1 . . . . . . . . . . . . Kick . | . . . . . . . . . . . . . . . . Crush 13 | . . . . 2 . . . . . . 1 . . 7 3 Escape Stasis 16 | . . . . . . . . . 16 . . . . . . Rewire 158 | . . . . . . 25 . . 133 . . . . . . Trap . | . . . . . . . . . . . . . . . . Miscellaneous 51 | . . . . . . . . . 42 8 . . 1 . . Route ------- -11/Scrapyard -10/Materials (discovered 6 exits: *Mat x3 / *Min x2 / Sub) -9/Materials (discovered 5 exits: *Mat x3 / [*Min x2]) -9/Mines (discovered 2 exits: *Mat x2) -8/Materials (discovered 5 exits: *Fac x3 / *Sto x2) -8/Storage (discovered 2 exits: *Fac / *Rec) -8/Recycling (discovered 2 exits: *Fac / *Scr) -8/Scraptown (discovered 2 exits: *Fac x2) -6/Factory (discovered 6 exits: Fac x2 / Low x2 / *Ext x2) -6/Extension (discovered 2 exits: *Fac / *Cet) -6/Cetus (discovered 2 exits: *Fac / [*Arc]) -5/Factory (discovered 3 exits: *Fac / *Upp x2) -5/Upper Caves -5/Upper Caves -4/Factory (discovered 3 exits: *Res / *Upp x2) -3/Research (discovered 3 exits: Arm / Qua x2) History --------- Turn | Location | Event 1 | -11/Scrapyard | Discovered new exit (range 0) 1 | -11/Scrapyard | Entered Materials 64 | -10/Materials | Discovered new exit (range 16) 188 | -10/Materials | Discovered new exit (range 6) 216 | -10/Materials | Core integrity fell below 50% 304 | -10/Materials | Build established: Mutant 541 | -10/Materials | Discovered new exit (range 14) 544 | -10/Materials | Discovered new exit (range 13) 881 | -10/Materials | Discovered new exit (range 9) 1319 | -10/Materials | Core integrity fell below 20% 1392 | -10/Materials | Identified exit to Subcaves 1507 | -10/Materials | Learned 2 Storage zone layouts 1550 | -10/Materials | Loaded intel: 8 terminal locations 1581 | -10/Materials | Learned location of 1 exit from Recycling 1632 | -10/Materials | Identified exit to Mines 1632 | -10/Materials | Identified exit to Materials 1671 | -10/Materials | Learned Storage garrison access intel 1721 | -10/Materials | Learned 2 Storage zone layouts 1727 | -10/Materials | Entered another Materials area 1727 | -9/Materials | Evolved 2 slots: Weapon x2 1839 | -9/Materials | Discovered new exit (range 15) 1924 | -9/Materials | Lost 3 parts (1n2w) 2279 | -9/Materials | Discovered new exit (range 13) 2308 | -9/Materials | Build established: Scavenger-Tank 2348 | -9/Materials | Central database locked down 2502 | -9/Materials | Loaded intel: 2 recycling unit locations 2555 | -9/Materials | Discovered new exit (range 14) 2565 | -9/Materials | Learned location of 1 exit from Recycling 2618 | -9/Materials | Learned location of Zion (-6) 2638 | -9/Materials | Repaired Arm. Wheel 2713 | -9/Materials | Learned location of Storage (-8) 2777 | -9/Materials | Identified exit to Materials 2777 | -9/Materials | Learned location of 1 exit from Materials 2851 | -9/Materials | Entered Mines 2975 | -9/Mines | Discovered exit to Materials (range 16) 3096 | -9/Mines | Core integrity fell below 50% 3281 | -9/Mines | Learned Materials garrison access intel 3289 | -9/Mines | Discovered exit to Materials (range 6) 3335 | -9/Mines | Learned 4 Materials zone layouts 3438 | -9/Mines | Entered Materials 3438 | -8/Materials | Accompanied by 2 allies 3438 | -8/Materials | Evolved 2 slots: Propulsion x2 3439 | -8/Materials | Identified exit to Storage 3440 | -8/Materials | Identified exit to Factory 3441 | -8/Materials | Loaded intel: 1 garrison access location 3443 | -8/Materials | Led the pair of lost Derelicts to an unsafe place 3625 | -8/Materials | Discovered exit to Storage (range 16) 3966 | -8/Materials | Build established: Gunner 4102 | -8/Materials | Destroyed 7 combat bots 4470 | -8/Materials | Discovered exit to Factory (range 13) 4812 | -8/Materials | Learned location of 1 exit from Lower Caves 4935 | -8/Materials | Learned Storage trap positions 4982 | -8/Materials | Learned Storage stockpile data 5051 | -8/Materials | Learned location of 2 exits from Factory 5070 | -8/Materials | Learned location of Recycling (-8) 5101 | -8/Materials | Learned Storage emergency access door positions 5217 | -8/Materials | Entered Storage 5219 | -8/Storage | Loaded intel: 8 trap records 5222 | -8/Storage | Loaded intel: 1 garrison access location 5228 | -8/Storage | Met a pair of Derelict thieves 5382 | -8/Storage | Destroyed 7 combat bots 5582 | -8/Storage | Repaired Enh. Autogun 5644 | -8/Storage | Repaired Enh. Autogun 5683 | -8/Storage | Repaired Adv. Treads 5959 | -8/Storage | Used back door to open Recycling access 5959 | -8/Storage | Discovered new exit (range 5) 6180 | -8/Storage | Assisted by bots powering up and referring to "LRC-V3" 6334 | -8/Storage | Learned 4 Factory zone layouts 6365 | -8/Storage | Learned Storage emergency access door positions 6399 | -8/Storage | Learned Storage emergency access door positions 6400 | -8/Storage | Learned 2 Storage zone layouts 6402 | -8/Storage | Learned location of 2 exits from Factory 6414 | -8/Storage | Learned location of 1 exit from Lower Caves 6480 | -8/Storage | Build established: Commander-Gunner 6696 | -8/Storage | Entered Recycling 6696 | -8/Recycling | Accompanied by 9 allies 6697 | -8/Recycling | Identified exit to Factory 6698 | -8/Recycling | Identified exit to Scraptown 7614 | -8/Recycling | Scanned before Scraplab entrance 7635 | -8/Recycling | Entered Scraplab 7748 | -8/Recycling | Entered Scraptown 7748 | -8/Scraptown | Accompanied by 13 allies 7992 | -8/Scraptown | Discovered exit to Factory (range 11) 8096 | -8/Scraptown | Visited Fellowship of the Rings 8165 | -8/Scraptown | Visited Bundlers 8254 | -8/Scraptown | Visited SPCMW 8371 | -8/Scraptown | Visited Spacefarers 8446 | -8/Scraptown | Visited IN-MT5's Study 8720 | -8/Scraptown | Visited Cave Peace 8762 | -8/Scraptown | Visited Awakened 8818 | -8/Scraptown | Visited UFD Registry 8818 | -8/Scraptown | Registered with UFD as "Gammanuts" 8857 | -8/Scraptown | Visited Infowarlord's Domain 8868 | -8/Scraptown | Found Exp. Sensor Array 8896 | -8/Scraptown | Visited Supply Room 9133 | -8/Scraptown | Visited Analyses Database 9164 | -8/Scraptown | Visited DA-N13 Charitable Foundation 9170 | -8/Scraptown | Found DCF Scrap (27 items) 9228 | -8/Scraptown | Build established: Commander-Tank 9379 | -8/Scraptown | Visited A0-MCA Data Center 9389 | -8/Scraptown | Given an A rating by A0-MCA 9395 | -8/Scraptown | Found A0-MCA's Component Scanner 9416 | -8/Scraptown | Visited Botcube Research 9440 | -8/Scraptown | Found Botcube 9472 | -8/Scraptown | Visited Abandonware Association 9484 | -8/Scraptown | Learned abandonware demo "OVRCLOCK.EXE" 9488 | -8/Scraptown | Learned abandonware demo "POISON.EXE" 9528 | -8/Scraptown | Visited Supply Room 9722 | -8/Scraptown | Visited Scrapoid Pod Storage 9993 | -8/Scraptown | Botcube activated 10015 | -8/Scraptown | Botcube completed mutation into treaded form, armed with 2 cannons. 10089 | -8/Scraptown | Found Scrapoid Pod 10307 | -8/Scraptown | Found Scrap Suit 10410 | -8/Scraptown | Met Optimus 10410 | -8/Scraptown | Accepted into 0bPrime 10546 | -8/Scraptown | Entered Factory 10546 | -6/Factory | Accompanied by 14 allies 10546 | -6/Factory | Evolved 4 slots: Utility x4 10547 | -6/Factory | Identified exit to Extension 10548 | -6/Factory | Identified exit to Lower Caves 10548 | -6/Factory | Identified exit to Factory 10689 | -6/Factory | Loaded intel: 8 recycling unit locations 10836 | -6/Factory | Build established: Commander-Gunner 10931 | -6/Factory | Lost 6 allies 10990 | -6/Factory | Scrapoid Pod released 06F05-D (x5) 11042 | -6/Factory | Found Scrap Suit 11043 | -6/Factory | Murdered 4 allies 11210 | -6/Factory | Spotted B-75 Beast 11247 | -6/Factory | Allies destroyed B-75 Beast 11376 | -6/Factory | Learned location of Protoforge (-3) 11479 | -6/Factory | Cargo convoy interrupted 11527 | -6/Factory | Botcube activated 11539 | -6/Factory | Destroyed 10 combat bots 11549 | -6/Factory | Lost 3 allies 11554 | -6/Factory | Found PL-3XN's Ring of Power 11792 | -6/Factory | Build established: Scavenger-Scrapper 11823 | -6/Factory | Learned 4 Factory zone layouts 11921 | -6/Factory | Learned Extension terminal intel 11955 | -6/Factory | Learned location of Upper Caves (-5) 11981 | -6/Factory | Learned location of Proximity Caves (-3) 12000 | -6/Factory | Learned location of Proximity Caves (-5) 12038 | -6/Factory | Learned Hub_04(d) garrison access intel 12116 | -6/Factory | Learned location of Proximity Caves (-5) 12136 | -6/Factory | Entered Extension 12136 | -6/Extension | Accompanied by 1 ally 12137 | -6/Extension | Loaded intel: 13 terminal locations 12218 | -6/Extension | Murdered Mutated Botcube 12218 | -6/Extension | Destroyed Mutated Botcube 12287 | -6/Extension | Rescued a captive Derelict 12288 | -6/Extension | Rescued a captive Derelict 12449 | -6/Extension | Rescued a captive Derelict 12509 | -6/Extension | Rescued A7 12557 | -6/Extension | Rescued a captive Derelict 12560 | -6/Extension | Rescued a captive Derelict 12624 | -6/Extension | Rescued a captive Derelict 12813 | -6/Extension | Spotted B-75 Beast 12835 | -6/Extension | Allies destroyed B-75 Beast 12836 | -6/Extension | First assault squad dispatched 12847 | -6/Extension | Spotted B-75 Beast 12863 | -6/Extension | Allies destroyed B-75 Beast 12961 | -6/Extension | Disrupted transfer network 13053 | -6/Extension | Discovered new exit (range 20) 13058 | -6/Extension | Discovered exit to Factory (range 19) 13173 | -6/Extension | Rescued a captive Derelict 13174 | -6/Extension | Rescued a captive Derelict 13438 | -6/Extension | Rescued a captive Derelict 13571 | -6/Extension | Rescued a captive Derelict 13625 | -6/Extension | P-60 Hacker assimilated allied J7-TPB(b) 13646 | -6/Extension | Lost 3 allies 13783 | -6/Extension | Entered Cetus 13783 | -6/Cetus | Accompanied by 8 allies (A7) 13788 | -6/Cetus | Acquired a Cetus Manufacturing Module code from A7 13788 | -6/Cetus | Spotted Cetus Guard 13789 | -6/Cetus | Spotted Cetus Guard 13793 | -6/Cetus | Spotted Cetus Guard 13793 | -6/Cetus | Spotted Cetus Guard 13793 | -6/Cetus | Destroyed Cetus Guard 13804 | -6/Cetus | Allies destroyed Cetus Guard 13812 | -6/Cetus | Destroyed Cetus Guard 13820 | -6/Cetus | Destroyed Cetus Guard 13844 | -6/Cetus | Cetus Manufacturing Module disabled 13847 | -6/Cetus | Lost 4 allies 13871 | -6/Cetus | System corruption reached 10% 14015 | -6/Cetus | Failed to start Cetus Manufacturing Module 14070 | -6/Cetus | Escorted A7 to Cetus Mainframe 14090 | -6/Cetus | Discovered new exit (range 20) 14144 | -6/Cetus | Spotted Cetus Guard 14145 | -6/Cetus | Spotted Cetus Guard 14147 | -6/Cetus | Destroyed Cetus Guard 14147 | -6/Cetus | Spotted Cetus Guard 14156 | -6/Cetus | Spotted Cetus Guard 14158 | -6/Cetus | Build established: Scavenger-Tank 14158 | -6/Cetus | Allies destroyed Cetus Guard 14159 | -6/Cetus | Allies destroyed Cetus Guard 14159 | -6/Cetus | Destroyed Cetus Guard 14162 | -6/Cetus | Discovered exit to Factory (range 20) 14177 | -6/Cetus | Met Revision 17 14259 | -6/Cetus | Entered Factory 14259 | -5/Factory | Accompanied by 4 allies (A7) 14259 | -5/Factory | Evolved 2 slots: Power x1, Utility x1 14260 | -5/Factory | Identified exit to Upper Caves 14261 | -5/Factory | Identified exit to Factory 14264 | -5/Factory | Received a hacking code to weaken MAIN.C 14559 | -5/Factory | First assault squad dispatched 15241 | -5/Factory | Loaded intel: 8 recycling unit locations 15383 | -5/Factory | Destroyed 12 combat bots 15514 | -5/Factory | Spotted B-75 Beast 15574 | -5/Factory | High security lockdown imminent 15616 | -5/Factory | Destroyed 7 combat bots 15654 | -5/Factory | High security lockdown engaged 15687 | -5/Factory | Entered Upper Caves 15766 | -5/Upper Caves | Attracted the attention of an 0b10 checkpoint 16286 | -5/Upper Caves | Discovered new exit (range 10) 16301 | -5/Upper Caves | Identified exit to Upper Caves 16401 | -5/Upper Caves | Entered another Upper Caves area 16621 | -5/Upper Caves | Discovered exit to Factory (range 24) 16857 | -5/Upper Caves | Spotted B-75 Beast 16872 | -5/Upper Caves | Destroyed B-75 Beast 17212 | -5/Upper Caves | Entered Factory 17212 | -4/Factory | Evolved 2 slots: Utility x2 17240 | -4/Factory | Discovered new exit (range 21) 17317 | -4/Factory | Loaded intel: 8 recycling unit locations 17457 | -4/Factory | Identified exit to Upper Caves 17493 | -4/Factory | Repaired Centrium Heavy Treads? 18186 | -4/Factory | Repaired Broken Centrium Heavy Treads 19120 | -4/Factory | Lost 3 parts (1p1u1w) 19165 | -4/Factory | Spotted B-86 Titan 19251 | -4/Factory | Discovered new exit (range 4) 19254 | -4/Factory | Identified exit to Research 19270 | -4/Factory | System corruption reached 10% 19452 | -4/Factory | Entered Research 19452 | -3/Research | Evolved 2 slots: Power x1, Utility x1 19794 | -3/Research | Lost 4 parts (3p1u) 19812 | -3/Research | Found Gamma Bomb Array 19816 | -3/Research | Found Gamma Bomb Array 20016 | -3/Research | Adv. Hacking Suite fried by hacking feedback 20214 | -3/Research | Cargo convoy interrupted 20216 | -3/Research | Spotted Striker 20224 | -3/Research | Lost 9 parts (2p2n2u3w) 20259 | -3/Research | Identified exit to Armory 20259 | -3/Research | Identified exit to Quarantine 20264 | -3/Research | Spotted B-86 Titan 20281 | -3/Research | System corruption reached 10% 20298 | -3/Research | Core integrity fell below 50% 20315 | -3/Research | Core integrity fell below 20% 20338 | -3/Research | Destroyed by P-80 Master with Gamma Rifle Last Messages --------------- 20306_ P-80 Master resets Striker, system corruption cleaned. 20307_ P-80 Master resets P-80 Master, system corruption cleaned. 20308_ Hacking Suite destroyed. 20309_ P-80 Master resets Striker, system corruption cleaned. 20311_ Slug penetrates Door. 20311_ Slug penetrates Wall. 20313_ Adv. Transmission Jammer destroyed. 20314_ System corrupted: Substantial component data lost. 20314_ Penetrated by Slug. 20314_ Cld. Field Propulsion Drive destroyed. 20315_ U-05 Engineer destroyed. 20317_ Penetrated by Slug. 20318_ Knocked back. 20318_ Slug penetrates Wall. 20330_ System corrupted: IFF burst signal emitted. Map ----- +----------------------------------------------------+ | ?????????????????????????????????????????????????? | | ?????????????????????????????????????????????????? | | ?????????????????????????????????????????????????? | | ?????????????????????????????????????????????????? | | ?????????????????????????????????????????????????? | | ?????????????????????????????????????????????????? | | ?????????????????????????????????????????????????? | | ?????????????????????????????????????????????????? | | ?????????????????????????????????????????????????? | | ????????????????????????????????????????????????## | | ????????????????????????????????????????????????# | | ????????????????????????????????????????????????# | | ???????????????????????????????????????????????## | | ???????????????????????????????????????????????#" | | ???????????????????????????????????????????????## | | ????????????#???????????????????????????????????# | | ??##+###### ############????????????????????????# | | ###*%% ??????????????????????## | | =%[!/ "" ????????????????>?????## | | ###!== "%%" ??????????????????????# | | ??## ######/#########???????????????????????????# | | ???# #??????????####################????????????#" | | ???# #??????????# #????????????#" | | ???# #??????????# #????????????#" | | ???# #??????????# """ """"" #????????????#T | | ???# #??????????# """ @ """"" #????????????#" | | ???# #??????????# """ """"" #????????????#" | | ???# #??????????# K #????????????#" | | ???# #??????????# #??########### | | ???# #??????????# #??# # | | ???# #????????###############;#+####??# ## | | ???#%#????????# + #????# #? | | ???# #????????# ## #????# #? | | ?###/########## """Y""" ## p #????# #? | | ?# % # """"""" ## p#?????? """ #? | | ?# # ## H #????????""" #? | | ## """ """ # ## #??????????" #? | | "" """ """ #+##+#####/#### #############"### | | "" """ """ # #?# ! | | "" + #?# *% | | "Y # #?# = | | "" """ """ + #?# % | | "" """ """ ####+### #?######## ##"###+### | | "" """ """ #? #% ####?????# ## ## | | ## ## # #T ####### ## ## | | ?# ## # =## ## | | ?############### # =%## ## | | ???????????????# # + = ## | | ???????????????# # ## ## | | ???????????????# # """ ######+## ## | +----------------------------------------------------+ Best States ------------- Heat Dissipation 77 Coolant Potential 80 Energy Generation 51 Energy Capacity 600 Matter Stores 300 Matter Capacity 300 Sight Range 22 Robot Scan Range 20 Terrain Scan Density 210 Jamming Range 16 Additional Mass Support 20 Base Temperature (-) 200 Armor Coverage 450 Evasion (%) 62 Targeting Accuracy 8 Recoil Reduction 4 Energy Filtering 50 Kinecelleration 40 Salvage Targeting 4 Offensive Hacking 14 Defensive Hacking 12 Item Schematics ----------------- Arm. Treads | -8/Materials | Scanalyzed Hacking Suite | -8/Materials | Scanalyzed Imp. Light Armor Plating | -8/Materials | Scanalyzed Adv. Targeting Computer | -8/Materials | Scanalyzed Centrium Heavy Treads | -4/Factory | Scanalyzed Robot Schematics ------------------ None Fabricated ------------ Nothing Repaired ---------- Arm. Wheel | 66% | -9/Materials Enh. Autogun | 28% | -8/Storage Enh. Autogun | 74% | -8/Storage Adv. Treads | 50% | -8/Storage Centrium Heavy Treads | 17% | -4/Factory Centrium Heavy Treads | 24% | -4/Factory | Broken Alien Tech Used ----------------- None Achievements -------------- None Challenges ------------ None Game ------ Seed SpreadArmorDeflector Manual? 0 Play Time 03:50:30 Cumulative 246.3 hours Start 2025.06.10 @ 13:42:04 End 2025.06.10 @ 21:50:50 Sessions 3 Manual Loads 0 Difficulty Rogue Special Mode None Game No. 145 Rogue 145 Adventurer 0 Explorer 0 Win Type - Total 11 Types 11/0/0/0/0/0/0/0/0/0 Lore% 69 Gallery% 68 Achievement% 61 Wizard Run 0 Options --------- Layout 1 ASCII 0 Keyboard 0 Movement Numpad Keybinds 0 Fullscreen 1 Font 24/Smallcaps Map View 50x35 Zoom Use 0% Tactical HUD 1 Map Filters NONE Filters NONE Steam 1 RUN: a8e377ee-369d-49f4-a4ce-0e37f247f322